{"text_format":"1","workbook":"xlsx","n_sheets":17,"sheets":["Cover Page","BSAR","BSP","Quarterly 1","Quarterly 2","Quarterly 3","Annual Update","Graphs","Target Behavior Datasheet","Safety Interventions Datasheet","FA Worksheet","Risk Issues Identification Tool","Benefit-Risk Analysis","Admin","IRR Worksheet","PP Reliability Worksheet","Implementation Reli Worksheet"],"not_rendered":{"charts":3,"images":0,"macros":1,"external_links":1,"defined_names":4,"comments":0,"pivot_tables":0},"unopened":[],"bounds":{"document_bytes":16777216,"sheet_cells":100000,"rows_first":2000,"rows_last":500,"rows_between":2000,"halvings":0,"cell_chars":16384,"cell_head_chars":4096},"cells_cut":0,"cells_raw":0,"read":"whole","date_system":"1900"}

{"sheet":"Cover Page","index":0,"n_rows":10,"n_cols":8,"rows_kept":10,"cut":false,"hidden":false,"merged":[[9,1,9,2],[9,3,9,6],[9,7,9,10],[0,0,1,11],[7,1,7,2],[7,3,7,6],[7,7,7,10],[8,1,8,2],[8,3,8,6],[8,7,8,10],[5,1,5,2],[5,3,5,6],[5,7,5,10],[6,1,6,2],[6,3,6,6],[6,7,6,10]]}
["Behavior Services Workbook"]
[]
[]
[]
[]
[null,"Role",null,"Name",null,null,null,"Contact Information"]
[null,"Person Supported"]
[null,"Behavior Analyst"]
[null,"Conservator"]
[null,"ISC"]

{"sheet":"BSAR","index":1,"n_rows":173,"n_cols":11,"rows_kept":173,"cut":false,"hidden":false,"merged":[[16,1,20,10],[114,1,123,10],[5,1,5,2],[3,1,3,2],[3,3,3,6],[3,7,3,10],[156,1,156,10],[47,4,47,5],[144,4,144,5],[47,7,47,8],[7,3,7,10],[44,4,44,5],[45,4,45,5],[129,8,129,10],[128,4,128,5],[98,9,98,10],[100,1,100,4],[102,5,102,6],[102,7,102,8],[102,9,102,10],[102,1,102,4],[100,5,100,6],[98,1,98,4],[98,5,98,6],[98,7,98,8],[145,7,145,10],[49,1,49,2],[129,6,129,7],[128,6,128,7],[128,8,128,10],[112,1,112,2],[137,6,137,10],[56,1,62,10],[64,1,69,10],[110,1,111,2],[145,2,145,3],[9,1,13,10],[155,1,155,10],[134,1,134,2],[133,5,133,10],[164,1,164,2],[165,1,165,2],[166,1,166,2],[164,5,164,6],[157,1,157,10],[158,1,158,10],[144,7,144,10],[144,2,144,3],[128,2,128,3],[129,2,129,3],[48,4,48,5],[106,1,106,4],[104,5,104,10],[111,7,111,10],[145,4,145,5],[49,4,49,5],[48,7,48,8],[49,7,49,8],[165,5,165,6],[166,5,166,6],[164,7,164,8],[165,7,165,8],[163,9,163,10],[164,9,164,10],[165,9,165,10],[166,9,166,10],[163,1,163,2],[163,3,163,4],[163,5,163,6],[163,7,163,8],[166,7,166,8],[164,3,164,4],[165,3,165,4],[166,3,166,4],[46,7,46,8],[44,1,44,2],[28,1,34,10],[0,0,0,11],[100,7,100,8],[100,9,100,10],[134,5,134,10],[136,6,136,7],[129,4,129,5],[40,2,40,7],[47,1,47,2],[48,1,48,2],[42,1,42,2],[45,1,45,2],[1,0,1,11],[2,3,2,6],[4,3,4,6],[5,3,5,6],[6,3,6,6],[2,7,2,10],[4,7,4,10],[5,7,5,10],[6,7,6,10],[39,2,39,7],[170,1,171,5],[139,9,139,10],[138,6,138,8],[138,9,138,10],[138,2,138,5],[139,2,139,5],[139,6,139,8],[133,3,133,4],[2,1,2,2],[104,1,104,4],[110,3,110,10],[112,7,112,10],[7,1,7,2],[6,1,6,2],[46,1,46,2],[134,3,134,4],[4,1,4,2],[133,1,133,2],[46,4,46,5],[24,1,24,9],[25,1,25,9],[26,1,26,9],[44,7,44,8],[45,7,45,8]]}
["Behavior Services Assessment Report (BSAR)"]
[]
[null,"Role",null,"Name",null,null,null,"Contact Information"]
[null,"Person Supported",null,{"$f":"'Cover Page'!D7","v":0},null,null,null,{"$f":"'Cover Page'!H7","v":0}]
[null,"Behavior Analyst",null,{"$f":"'Cover Page'!D8","v":0},null,null,null,{"$f":"'Cover Page'!H8","v":0}]
[null,"Conservator",null,{"$f":"'Cover Page'!D9","v":0},null,null,null,{"$f":"'Cover Page'!H9","v":0}]
[null,"ISC",null,{"$f":"'Cover Page'!D10","v":0},null,null,null,{"$f":"'Cover Page'!H10","v":0}]
["1.1.1","Date(s) of Assessment"]
[]
[null,"The Behavior Services Assessment Report (BSAR) is a document designed to communicate what is important to a person by understanding the meaning of his or her actions.  Behavior analysts collect and classify information from the person's unique history and individualized direct observations to complete the assessment.  BSARs reflect a thorough understanding of the person and his or her behavior.  The BSAR also provides recommendations that are person-centered and effective in helping the person achieve greater independence and a satisfying life while respecting the rights of other community members.  "]
[]
[]
[]
[]
[null,"To add a row to any section, select the entire blue row below the table and click the button labeled \"Add\".  "]
[null,"To remove a row, select the row you wish to remove and click the button labeled \"Delete\".  "]
["1.1.2","Reason for Referral (Statement of Person and COS expectations):"]
[]
[]
[]
[]
[]
["1.1.3","Evaluation of historical behavioral procedures.  "]
[]
[null,"Procedure or Practice",null,null,null,null,null,null,null,null,"Estimate of Effectiveness"]
[]
[]
[]
["1.1.4","History of the use of behavioral safety interventions"]
[]
[]
[]
[]
[]
[]
[]
["2.1.1","Behaviors of concern defined in observable and measurable terms.  "]
[]
[]
[null,"Behavior","Definition",null,null,null,null,null,"Frequency","Intensity","Duration (Range in Minutes)"]
[]
[]
[null,"Reinforcers (Up to 15)"]
[]
[null,"Reinforcer",null,"Value","Reinforcer",null,"Value","Reinforcer",null,"Value"]
[]
[]
[]
[]
[]
[]
["2.1.2","Baseline and/or comparison data (Minimum of three data points for each behavior of concern).  "]
[]
[null,"Baseline Data Graphs"]
[]
[]
["2.1.3","Data reliability:"]
[]
[]
[]
[]
[]
[]
[]
[null,"Interpretation of Baseline Data:  "]
[]
[]
[]
[]
[]
[]
["2.1.4","Analysis of antecedents and consequences using direct and objective measures.  "]
[]
[null,"Behavior","Attention Antecedent","Attention Consequent","Escape Antecedent","Escape Consequent","Tangible Antecedent","Tangible Consequent","Automatic Antecedent","Automatic Consequent"]
[null,{"$f":"B41","v":0}]
[]
["2.1.4","Graphic display of function data.   "]
[]
[]
[]
[]
[]
[]
[]
[]
[]
[]
[]
[]
[]
[]
[]
[]
[]
[]
[]
["2.1.5","Potential Motivating Operations"]
[]
[null,"Mental Health/ID Diagnoses"]
[]
[null,"Psychotropic Medications "]
[]
[null,"Medical Diagnoses "]
[]
[null,"Social History"]
[]
[null,"Average hours of sleep per 24 hour period.  "]
[]
["2.1.5","Hypothesized Motivating Operations"]
[]
[null,"Contributing Factor (Motivating Operation)",null,"Specific hypothesized impact on present behavior.  "]
[null,null,null,"Effect on Reinforcer","Reinforcer Affected","Effect on Behavior","Behaviors Affected","Specific Hypothesis"]
[]
[]
["2.1.4","Analysis of Function Data"]
["2.1.5"]
[]
[]
[]
[]
[]
[]
[]
[]
[]
["2.1.6","Functional hypotheses. "]
[]
[]
[null,"Target Behavior","Motivating Operation",null,"Antecedents",null,"Consequences",null,"Behavioral Function"]
[null,{"$f":"B41","v":0}]
[]
["2.1.6","Functionally Equivalent Replacement Behaviors"]
[]
[null,"Function",null,"Replacement Behavior",null,"Replacement Behavior Definition"]
[null,{"$f":"I130","v":0}]
[]
["2.1.7","Measurable and time-limited objectives."]
[]
[null,"Target Behavior","Behavioral Criterion (Frequency/Intensity/Duration per week/month/year expected)",null,null,null,"Temporal Criterion (How long must the behavior be sustained?)",null,null,"Projected Date of Achievment"]
[null,{"$f":"B41","v":0}]
[]
["2.1.9","Recommendations for the COS to consider.  "]
[]
[]
[null,"Type","Procedure",null,"DIDD Class",null,"Function Addressed","Brief Description"]
[]
[]
["2.1.10","Benefit/Risk Analysis of Restricted Procedures or Behavioral Safety Procedures"]
[]
[null,"Benefit/Risk Analysis"]
[]
[]
[]
["1.1.5","Proposed ISP outcomes for replacement behavior and improved quality of life (one per line).  "]
[]
[]
[]
[]
[]
[]
[]
["1.1.6","Scope, frequency, and duration of behavior services.  "]
[]
[null,"Behavior Service",null,"Number of Units",null,"Frequency",null,"Projected Duration",null,"Dates"]
[]
[]
[]
[]
[]
[]
["1.4.1"]
[]
[null,"Behavior Analyst Signature and Credentials",null,null,null,null,null,"Date"]

{"sheet":"BSP","index":2,"n_rows":63,"n_cols":12,"rows_kept":63,"cut":false,"hidden":false,"merged":[[0,0,0,11],[1,0,1,11],[15,2,16,10],[7,2,7,7],[2,4,2,6],[3,7,3,8],[4,7,4,8],[2,1,2,3],[4,4,4,6],[8,2,8,10],[12,2,12,10],[4,1,4,3],[5,4,5,6],[5,1,5,3],[2,9,2,10],[9,2,9,10],[18,2,18,10],[3,1,3,3],[3,4,3,6],[2,7,2,8],[11,2,11,10],[17,2,17,10],[25,1,28,10],[44,1,45,5],[48,1,49,5],[60,1,60,3],[52,1,53,5],[56,1,57,5],[50,1,50,4],[54,1,54,4],[58,1,58,4],[38,1,42,10],[36,1,36,3],[62,1,62,2],[32,1,34,10],[62,3,62,10],[66,3,66,10],[67,3,67,10],[66,1,66,2],[67,1,67,2],[63,1,63,2],[64,1,64,2],[65,1,65,2],[63,3,63,10],[64,3,64,10],[65,3,65,10]]}
["Behavior Support Plan"]
[]
[null,"Person Supported",null,null,{"$f":"BSAR!D4","v":0},null,null,"BSP Implementation Date",null,null,null,"1.2.1"]
[null,"Behavior Analyst",null,null,{"$f":"BSAR!D5","v":0},null,null,"BSC Approval Date",null,null,null,"1.2.3"]
["1.2.2","Consent Date",null,null,null,null,null,"HRC Approval Date ",null,null,null,"1.2.3"]
[null,"Conservator      ",null,null,{"$f":"BSAR!D6","v":0}]
[null,null,"Select the orange row below the table and click \"Add Bx\" to add a new row.  "]
[null,null,"Select any row and click \"Del\" to delete a row. "]
[null,"Target Behaviors","Definition"]
[null,{"$f":"BSAR!B41","v":0},{"$f":"BSAR!C41","v":0}]
[]
["2.2.2","Replacement Behaviors","Definition"]
[null,{"$f":"BSAR!D135","v":0},{"$f":"BSAR!F135","v":0}]
[]
[null,"Staff Instructions"]
[]
[]
[null,"Procedure","Staff Instructions for Implementation"]
[null,{"$f":"BSAR!C146","v":0}]
[]
[]
[null,"Data Collection Procedures"]
[]
[null,"Target Behaviors:  "]
[]
[]
[]
[]
[]
[]
[null,"Replacement Behaviors:  "]
[]
[]
[]
[]
[]
[null,"Statement of Consent: "]
[]
[null,"As the legal representative of the person for whom the above plan was written, I certify that I have reviewed the above plan and had the opportunity to ask the BA any questions related to the interventions contained herein.  I have been informed of the possible risks and benefits associated with the above named procedures.  With this information in mind, I consent to the behavior support plan.  Further, I consent to allow the behavior analyst to make minor adjustments to the plan as needed and to inform me about the change as soon as possible.  If new restricted or special individualized procedures are added to the behavior support plan, it is required that I provide a new consent before the new procedures are implemented.  I understand that I may withdraw my consent at any time and that a new consent is required annually regardless of whether there are any changes.  "]
[]
[]
[]
[]
[]
["1.2.2"]
[]
[null,"Person Supported/Conservator Signature",null,null,null,null,null,"Date"]
[]
[]
[]
[null,"Behavior Analyst Signature and Credentials",null,null,null,null,null,"Date"]
[]
[]
[]
[null,"BSC Chairperson Signature",null,null,null,null,null,"Date"]
[]
[]
[]
[null,"HRC Chairperson Signature",null,null,null,null,null,"Date"]
[]
[null,"Revision Dates:  "]
[]
[null,"Revision Date",null,"Brief Explanation of Staff Instructions Revision and Reason for the Change"]

{"sheet":"Quarterly 1","index":3,"n_rows":72,"n_cols":12,"rows_kept":72,"cut":false,"hidden":false,"merged":[[69,1,70,5],[40,1,44,10],[49,1,60,10],[62,1,62,8],[65,1,65,4],[65,7,65,10],[66,1,66,4],[66,7,66,10],[37,1,37,2],[37,3,37,4],[37,5,37,6],[37,7,37,8],[37,9,37,10],[38,1,38,2],[38,3,38,4],[38,5,38,6],[38,7,38,8],[38,9,38,10],[34,1,34,2],[34,3,34,4],[34,5,34,6],[34,7,34,8],[34,9,34,10],[35,1,35,2],[35,3,35,4],[35,5,35,6],[35,7,35,8],[35,9,35,10],[11,1,13,10],[25,3,26,10],[27,3,27,5],[27,7,27,9],[28,1,28,2],[28,3,28,5],[28,7,28,9],[10,1,10,3],[4,1,4,3],[4,4,4,6],[4,7,4,8],[4,9,4,10],[5,1,5,3],[5,4,5,6],[5,7,5,8],[5,9,5,10],[6,1,6,3],[6,4,6,6],[6,7,6,8],[6,9,6,10],[8,8,8,10],[0,0,0,11],[1,0,1,11],[3,1,3,3],[3,4,3,6],[3,7,3,8],[3,9,3,10]]}
["Clinical Service Quarterly Review"]
[]
[]
[null,"Person Supported",null,null,{"$f":"BSP!E3","v":0},null,null,"BSP Implementation Date",null,{"$f":"BSP!J3","v":"00:00:00"}]
[null,"Behavior Analyst",null,null,{"$f":"BSP!E4","v":0},null,null,"BSC Approval Date",null,{"$f":"BSP!J4","v":"00:00:00"}]
[null,"Consent Date",null,null,{"$f":"BSP!E5","v":"00:00:00"},null,null,"HRC Approval Date ",null,{"$f":"BSP!J5","v":"00:00:00"}]
[null,"Conservator      ",null,null,{"$f":"BSP!E6","v":0},null,null,"Date of CSQR",null,null,null,"1.3.1"]
[]
["1.3.2","Units Approved",null,"Units Used",null,"% Used",{"$f":"E9/C9","v":{"$error":"#DIV/0!"}},"Dates of Service"]
[]
[null,"Explanation of % Used < 100"]
[]
[]
[]
[]
[]
["2.3.1-4","Treatment data for target behaviors and baseline data for replacement behaviors.  "]
[]
[null,null,"Target Behavior Data Table"]
[null,null,"Behavioral Safety Interventions Table"]
[null,null,"Graphic Update"]
[]
[]
[]
["2.3.8","Overall assessment of all named procedures in the BSP."]
[null,null,null,"Here, select the row below the one you want to add and select \"Add\".  Continue adding until all BSP procedures appear.  "]
[]
[null,null,null,"DIDD Procedural Classification",null,null,"% Implementation Reliability","Rating of Effectiveness"]
[null,"Staff Instructions",null,{"$f":"BSP!B19","v":0}]
[]
["2.3.9","Progress for each behavioral objective is "]
[null,"assessed and adjusted as appropriate.  "]
[]
[]
[null,"Target Behavior",null,"Behavioral Criterion (Frequency/Intensity/ Duration expected)",null,"Temporal Criterion (How long must the behavior be sustained?)",null,"% Data Reliability",null,"Assessment"]
[]
[]
[null,"Replacement Behavior",null,"Behavioral Criterion (Frequency/Intensity/Duration expected)",null,"Temporal Criterion (How long must the behavior be sustained?)",null,"% Data Reliability",null,"Assessment"]
[]
[]
[null,"Adjustments for objectives in need of revison (Describe below and make adjustments in criterion above).   "]
[]
[]
[]
[]
[]
[]
[null,"Functional Assessment Worksheet ",null,null,"Used if a finding of \"No Progress\" is listed for any target behavior.      "]
[]
["2.3.10","Overall assessment of progress during the foregoing quarter AND since treatment began.  "]
[]
[]
[]
[]
[]
[]
[]
[]
[]
[]
[]
[]
["2.3.6","Action Step Tracking "]
["2.3.11",null,null,"If any of the data in this report necessitate an action on the part of the behavior analyst, "]
[null,null,null,"that action should be outlined below with a projected completion date.  "]
[null,"Action Step",null,null,null,"Projected Completion Date","Completion Date"," Explanation for Tasks Not Completed by Projected Date"]
[]
[]
[]
["1.4.1"]
[]
[null,"Behavior Analyst Signature and Credentials",null,null,null,null,null,"Date"]

{"sheet":"Quarterly 2","index":4,"n_rows":71,"n_cols":12,"rows_kept":71,"cut":false,"hidden":false,"merged":[[68,1,69,5],[35,3,35,4],[35,7,35,8],[40,1,44,10],[49,1,59,10],[35,5,35,6],[64,7,64,10],[65,7,65,10],[64,1,64,4],[65,1,65,4],[61,1,61,8],[0,0,0,11],[3,1,3,3],[3,4,3,6],[5,1,5,3],[5,4,5,6],[1,0,1,11],[4,1,4,3],[4,4,4,6],[3,7,3,8],[3,9,3,10],[4,7,4,8],[4,9,4,10],[5,7,5,8],[5,9,5,10],[25,3,26,10],[28,1,28,2],[37,9,37,10],[38,9,38,10],[37,1,37,2],[38,1,38,2],[37,7,37,8],[38,7,38,8],[37,5,37,6],[38,5,38,6],[37,3,37,4],[38,3,38,4],[35,9,35,10],[34,1,34,2],[35,1,35,2],[34,3,34,4],[6,1,6,3],[6,4,6,6],[10,1,10,3],[8,8,8,10],[11,1,13,10],[6,7,6,8],[6,9,6,10],[27,7,27,9],[27,3,27,5],[28,3,28,5],[28,7,28,9],[34,9,34,10],[34,7,34,8],[34,5,34,6]]}
["Clinical Service Quarterly Review"]
[]
[]
[null,"Person Supported",null,null,{"$f":"BSP!E3","v":0},null,null,"BSP Implementation Date",null,{"$f":"BSP!J3","v":"00:00:00"}]
[null,"Behavior Analyst",null,null,{"$f":"BSP!E4","v":0},null,null,"BSC Approval Date",null,{"$f":"BSP!J4","v":"00:00:00"}]
[null,"Consent Date",null,null,{"$f":"BSP!E5","v":"00:00:00"},null,null,"HRC Approval Date ",null,{"$f":"BSP!J5","v":"00:00:00"}]
[null,"Conservator      ",null,null,{"$f":"BSP!E6","v":0},null,null,"Date of CSQR",null,null,null,"1.3.1"]
[]
["1.3.2","Units Approved",null,"Units Used",null,"% Used",{"$f":"E9/C9","v":{"$error":"#DIV/0!"}},"Dates of Service"]
[]
[null,"Explanation of % Used < 100"]
[]
[]
[]
[]
[]
["2.3.1-4","Treatment data for target behaviors and baseline data for replacement behaviors.  "]
[]
[null,null,"Target Behavior Data Table"]
[null,null,"Behavioral Safety Interventions Table"]
[null,null,"Graphic Update"]
[]
[]
[]
["2.3.8","Overall assessment of all named procedures in the BSP."]
[null,null,null,"Here, select the row below the one you want to add and select \"Add\".  Continue adding until all BSP procedures appear.  "]
[]
[null,null,null,"DIDD Procedural Classification",null,null,"% Implementation Reliability","Rating of Effectiveness"]
[null,"Staff Instructions",null,{"$f":"BSP!B19","v":0}]
[]
["2.3.9","Progress for each behavioral objective is "]
[null,"assessed and adjusted as appropriate.  "]
[]
[]
[null,"Target Behavior",null,"Behavioral Criterion (Frequency/Intensity/ Duration expected)",null,"Temporal Criterion (How long must the behavior be sustained?)",null,"% Data Reliability",null,"Assessment"]
[null,{"$f":"'Quarterly 1'!B36","v":0},null,{"$f":"'Quarterly 1'!D36","v":0},null,{"$f":"'Quarterly 1'!F36","v":0}]
[]
[null,"Replacement Behavior",null,"Behavioral Criterion (Frequency/Intensity/ Duration expected)",null,"Temporal Criterion (How long must the behavior be sustained?)",null,"% Data Reliability",null,"Assessment"]
[null,{"$f":"'Quarterly 1'!B39","v":0},null,{"$f":"'Quarterly 1'!D39","v":0},null,{"$f":"'Quarterly 1'!F39","v":0}]
[]
[null,"Adjustments for objectives in need of revison (Describe below and make adjustments in criterion above).   "]
[]
[]
[]
[]
[]
[]
[null,"Functional Assessment Worksheet ",null,null,"Used if a finding of \"No Progress\" is listed for any target behavior.      "]
[]
["2.3.10","Overall assessment of progress during the foregoing quarter AND since treatment began.  "]
[]
[]
[]
[]
[]
[]
[]
[]
[]
[]
[]
["2.3.6","Action Step Tracking "]
["2.3.11",null,null,"If any of the data in this report necessitate an action on the part of the behavior analyst, "]
[null,null,null,"that action should be outlined below with a projected completion date.  "]
[null,"Action Step",null,null,null,"Projected Completion Date","Completion Date"," Explanation for Tasks Not Completed by Projected Date"]
[null,{"$f":"'Quarterly 1'!B67","v":0},null,null,null,{"$f":"'Quarterly 1'!F67","v":"00:00:00"},{"$f":"'Quarterly 1'!G67","v":"00:00:00"}]
[]
[]
["1.4.1"]
[]
[null,"Behavior Analyst Signature and Credentials",null,null,null,null,null,"Date"]

{"sheet":"Quarterly 3","index":5,"n_rows":72,"n_cols":12,"rows_kept":72,"cut":false,"hidden":false,"merged":[[0,0,0,11],[1,0,1,11],[3,1,3,3],[3,4,3,6],[3,7,3,8],[3,9,3,10],[10,1,10,3],[4,1,4,3],[4,4,4,6],[4,7,4,8],[4,9,4,10],[5,1,5,3],[5,4,5,6],[5,7,5,8],[5,9,5,10],[6,1,6,3],[6,4,6,6],[6,7,6,8],[6,9,6,10],[8,8,8,10],[11,1,13,10],[25,3,26,10],[27,3,27,5],[27,7,27,9],[28,1,28,2],[28,3,28,5],[28,7,28,9],[35,1,35,2],[35,3,35,4],[35,5,35,6],[35,7,35,8],[35,9,35,10],[34,1,34,2],[34,3,34,4],[34,5,34,6],[34,7,34,8],[34,9,34,10],[38,1,38,2],[38,3,38,4],[38,5,38,6],[38,7,38,8],[38,9,38,10],[37,1,37,2],[37,3,37,4],[37,5,37,6],[37,7,37,8],[37,9,37,10],[40,1,44,10],[49,1,60,10],[69,1,70,5],[62,1,62,8],[65,1,65,4],[65,7,65,10],[66,1,66,4],[66,7,66,10]]}
["Clinical Service Quarterly Review"]
[]
[]
[null,"Person Supported",null,null,{"$f":"BSP!E3","v":0},null,null,"BSP Implementation Date",null,{"$f":"BSP!J3","v":"00:00:00"}]
[null,"Behavior Analyst",null,null,{"$f":"BSP!E4","v":0},null,null,"BSC Approval Date",null,{"$f":"BSP!J4","v":"00:00:00"}]
[null,"Consent Date",null,null,{"$f":"BSP!E5","v":"00:00:00"},null,null,"HRC Approval Date ",null,{"$f":"BSP!J5","v":"00:00:00"}]
[null,"Conservator      ",null,null,{"$f":"BSP!E6","v":0},null,null,"Date of CSQR",null,null,null,"1.3.1"]
[]
["1.3.2","Units Approved",null,"Units Used",null,"% Used",{"$f":"E9/C9","v":{"$error":"#DIV/0!"}},"Dates of Service"]
[]
[null,"Explanation of % Used < 100"]
[]
[]
[]
[]
[]
["2.3.1-4","Treatment data for target behaviors and baseline data for replacement behaviors.  "]
[]
[null,null,"Target Behavior Data Table"]
[null,null,"Behavioral Safety Interventions Table"]
[null,null,"Graphic Update"]
[]
[]
[]
["2.3.8","Overall assessment of all named procedures in the BSP."]
[null,null,null,"Here, select the row below the one you want to add and select \"Add\".  Continue adding until all BSP procedures appear.  "]
[]
[null,null,null,"DIDD Procedural Classification",null,null,"% Implementation Reliability","Rating of Effectiveness"]
[null,"Staff Instructions",null,{"$f":"BSP!B19","v":0}]
[]
["2.3.9","Progress for each behavioral objective is "]
[null,"assessed and adjusted as appropriate.  "]
[]
[]
[null,"Target Behavior",null,"Behavioral Criterion (Frequency/Intensity/ Duration expected)",null,"Temporal Criterion (How long must the behavior be sustained?)",null,"% Data Reliability",null,"Assessment"]
[null,{"$f":"'Quarterly 2'!B36","v":0},null,{"$f":"'Quarterly 2'!D36","v":0},null,{"$f":"'Quarterly 2'!F36","v":0}]
[]
[null,"Replacement Behavior",null,"Behavioral Criterion (Frequency/Intensity/Duration expected)",null,"Temporal Criterion (How long must the behavior be sustained?)",null,"% Data Reliability",null,"Assessment"]
[null,{"$f":"'Quarterly 2'!B39","v":0},null,{"$f":"'Quarterly 2'!D39","v":0},null,{"$f":"'Quarterly 2'!F39","v":0}]
[]
[null,"Adjustments for objectives in need of revison (Describe below and make adjustments in criterion above).   "]
[]
[]
[]
[]
[]
[]
[null,"Functional Assessment Worksheet ",null,null,"Used if a finding of \"No Progress\" is listed for any target behavior.      "]
[]
["2.3.10","Overall assessment of progress during the foregoing quarter AND since treatment began.  "]
[]
[]
[]
[]
[]
[]
[]
[]
[]
[]
[]
[]
["2.3.6","Action Step Tracking "]
["2.3.11",null,null,"If any of the data in this report necessitate an action on the part of the behavior analyst, "]
[null,null,null,"that action should be outlined below with a projected completion date.  "]
[null,"Action Step",null,null,null,"Projected Completion Date","Completion Date"," Explanation for Tasks Not Completed by Projected Date"]
[null,{"$f":"'Quarterly 2'!B66","v":0},null,null,null,{"$f":"'Quarterly 2'!F66","v":"00:00:00"},{"$f":"'Quarterly 2'!G66","v":"00:00:00"}]
[]
[]
["1.4.1"]
[]
[null,"Behavior Analyst Signature and Credentials",null,null,null,null,null,"Date"]

{"sheet":"Annual Update","index":6,"n_rows":78,"n_cols":12,"rows_kept":78,"cut":false,"hidden":false,"merged":[[0,0,0,11],[1,0,1,11],[3,1,3,3],[3,4,3,6],[3,7,3,8],[3,9,3,10],[10,1,10,3],[4,1,4,3],[4,4,4,6],[4,7,4,8],[4,9,4,10],[5,1,5,3],[5,4,5,6],[5,7,5,8],[5,9,5,10],[6,1,6,3],[6,4,6,6],[6,7,6,8],[6,9,6,10],[8,8,8,10],[11,1,13,10],[25,3,26,10],[27,3,27,5],[27,7,27,9],[28,1,28,2],[28,3,28,5],[28,7,28,9],[40,1,44,10],[49,1,59,10],[61,1,61,8],[64,1,64,4],[34,1,34,2],[34,3,34,4],[34,5,34,6],[34,7,34,8],[34,9,34,10],[35,1,35,2],[35,3,35,4],[35,5,35,6],[35,7,35,8],[35,9,35,10],[38,1,38,2],[38,3,38,4],[38,5,38,6],[38,7,38,8],[38,9,38,10],[37,1,37,2],[37,3,37,4],[37,5,37,6],[37,7,37,8],[37,9,37,10],[64,7,64,10],[75,1,76,5],[70,1,70,4],[70,6,70,10],[71,6,71,10],[72,1,72,10],[65,1,65,4],[65,7,65,10]]}
["Clinical Service Quarterly Review"]
[]
[]
[null,"Person Supported",null,null,{"$f":"BSP!E3","v":0},null,null,"BSP Implementation Date",null,{"$f":"BSP!J3","v":"00:00:00"}]
[null,"Behavior Analyst",null,null,{"$f":"BSP!E4","v":0},null,null,"BSC Approval Date",null,{"$f":"BSP!J4","v":"00:00:00"}]
[null,"Consent Date",null,null,{"$f":"BSP!E5","v":"00:00:00"},null,null,"HRC Approval Date ",null,{"$f":"BSP!J5","v":"00:00:00"}]
[null,"Conservator      ",null,null,{"$f":"BSP!E6","v":0},null,null,"Date of CSQR",null,null,null,"1.3.1"]
[]
["1.3.2","Units Approved",null,"Units Used",null,"% Used",{"$f":"E9/C9","v":{"$error":"#DIV/0!"}},"Dates of Service"]
[]
[null,"Explanation of % Used < 100"]
[]
[]
[]
[]
[]
["2.3.1-4","Treatment data for target behaviors and baseline data for replacement behaviors.  "]
[]
[null,null,"Target Behavior Data Table"]
[null,null,"Behavioral Safety Interventions Table"]
[null,null,"Graphic Update"]
[]
[]
[]
["2.3.8","Overall assessment of all named procedures in the BSP."]
[null,null,null,"Here, select the row below the one you want to add and select \"Add\".  Continue adding until all BSP procedures appear.  "]
[]
[null,null,null,"DIDD Procedural Classification",null,null,"% Implementation Reliability","Rating of Effectiveness"]
[null,"Staff Instructions",null,{"$f":"BSP!B19","v":0}]
[]
["2.3.9","Progress for each behavioral objective is "]
[null,"assessed and adjusted as appropriate.  "]
[]
[]
[null,"Target Behavior",null,"Behavioral Criterion (Frequency/Intensity/ Duration expected)",null,"Temporal Criterion (How long must the behavior be sustained?)",null,"% Data Reliability",null,"Assessment"]
[null,{"$f":"'Quarterly 3'!B36:C36","v":0},null,{"$f":"'Quarterly 3'!D36:E36","v":0},null,{"$f":"'Quarterly 3'!F36:G36","v":0}]
[]
[null,"Replacement Behavior",null,"Behavioral Criterion (Frequency/Intensity/Duration expected)",null,"Temporal Criterion (How long must the behavior be sustained?)",null,"% Data Reliability",null,"Assessment"]
[null,{"$f":"'Quarterly 3'!B39:C39","v":0},null,{"$f":"'Quarterly 3'!D39:E39","v":0},null,{"$f":"'Quarterly 3'!F39:G39","v":0}]
[]
[null,"Adjustments for objectives in need of revison (Describe below and make adjustments in criterion above).   "]
[]
[]
[]
[]
[]
[]
[null,"Functional Assessment Worksheet ",null,null,"Used if a finding of \"No Progress\" is listed for any target behavior.      "]
[]
["2.3.10","Overall assessment of progress during the foregoing quarter AND since treatment began.  "]
[]
[]
[]
[]
[]
[]
[]
[]
[]
[]
[]
["2.3.6","Action Step Tracking"]
["2.3.11",null,null,"If any of the data in this report necessitate an action on the part of the behavior analyst, "]
[null,null,null,"that action should be outlined below with a projected completion date.  "]
[null,"Action Step",null,null,null,"Projected Completion Date","Completion Date"," Explanation for Tasks Not Completed by Projected Date"]
[null,{"$f":"'Quarterly 3'!B67","v":0},null,null,null,{"$f":"'Quarterly 3'!F67","v":"00:00:00"},{"$f":"'Quarterly 3'!G67","v":"00:00:00"}]
[]
[]
[null,"Risk Issues Identification Tool"]
[]
["1.4.3","List of recommendations and projected outcomes for the new ISP year.  "]
[]
[]
[]
[]
["1.4.1"]
[]
[null,"Behavior Analyst Signature and Credentials",null,null,null,null,null,"Date"]

{"sheet":"Graphs","index":7,"n_rows":0,"n_cols":0,"rows_kept":0,"cut":false,"hidden":false,"merged":[[158,1,159,5]]}

{"sheet":"Target Behavior Datasheet","index":8,"n_rows":32,"n_cols":62,"rows_kept":32,"cut":false,"hidden":false,"merged":[]}
["Target Behaviors","2012-07-12",{"$f":"B1+7","v":"2012-07-19"},"2012-07-26","2012-08-02","2012-08-09","2012-08-16","2012-08-23","2012-08-30","Baseline",{"$f":"I1+7","v":"2012-09-06"},{"$f":"K1+7","v":"2012-09-13"},"2012-09-20","2012-09-27","2012-10-04","2012-10-11","2012-10-18","2012-10-25","2012-11-01","2012-11-08","2012-11-15","2012-11-22","2012-11-29","2012-12-06","2012-12-13","2012-12-20","2012-12-27","2013-01-03","2013-01-10","2013-01-17","2013-01-24","2013-01-31","2013-02-07","2013-02-14","2013-02-21","2013-02-28","2013-03-07","2013-03-14","2013-03-21","2013-03-28","2013-04-04","2013-04-11","2013-04-18",{"$f":"AQ1+7","v":"2013-04-25"},"2013-05-02","2013-05-09","2013-05-16","2013-05-23","2013-05-30","2013-06-06","2013-06-13","2013-06-20","2013-06-27","2013-07-04","2013-07-11","2013-07-18","2013-07-25","2013-08-01","2013-08-08","2013-08-15","2013-08-22","Year Avg."]
[{"$f":"BSP!B10","v":0},null,null,null,null,null,null,null,null,null,null,null,null,null,null,null,null,null,null,null,null,null,null,null,null,null,null,null,null,null,null,null,null,null,null,null,null,null,null,null,null,null,null,null,null,null,null,null,null,null,null,null,null,null,null,null,null,null,null,null,null,{"$f":"AVERAGE(B2:BA2)","v":{"$error":"#DIV/0!"}}]
[{"$f":"BSP!B11","v":0},null,null,null,null,null,null,null,null,null,null,null,null,null,null,null,null,null,null,null,null,null,null,null,null,null,null,null,null,null,null,null,null,null,null,null,null,null,null,null,null,null,null,null,null,null,null,null,null,null,null,null,null,null,null,null,null,null,null,null,null,{"$f":"AVERAGE(B3:BA3)","v":{"$error":"#DIV/0!"}}]
[{"$f":"BSP!B12","v":"Replacement Behaviors"},null,null,null,null,null,null,null,null,null,null,null,null,null,null,null,null,null,null,null,null,null,null,null,null,null,null,null,null,null,null,null,null,null,null,null,null,null,null,null,null,null,null,null,null,null,null,null,null,null,null,null,null,null,null,null,null,null,null,null,null,{"$f":"IFERROR(BJ3/BJ2,0)","v":0}]
[{"$f":"BSP!B13","v":0},null,null,null,null,null,null,null,null,null,null,null,null,null,null,null,null,null,null,null,null,null,null,null,null,null,null,null,null,null,null,null,null,null,null,null,null,null,null,null,null,null,null,null,null,null,null,null,null,null,null,null,null,null,null,null,null,null,null,null,null,{"$f":"AVERAGE(B5:BA5)","v":{"$error":"#DIV/0!"}}]
[{"$f":"BSP!B14","v":0},null,null,null,null,null,null,null,null,null,null,null,null,null,null,null,null,null,null,null,null,null,null,null,null,null,null,null,null,null,null,null,null,null,null,null,null,null,null,null,null,null,null,null,null,null,null,null,null,null,null,null,null,null,null,null,null,null,null,null,null,{"$f":"AVERAGE(B6:BA6)","v":{"$error":"#DIV/0!"}}]
[{"$f":"BSP!B15","v":"Staff Instructions"},null,null,null,null,null,null,null,null,null,null,null,null,null,null,null,null,null,null,null,null,null,null,null,null,null,null,null,null,null,null,null,null,null,null,null,null,null,null,null,null,null,null,null,null,null,null,null,null,null,null,null,null,null,null,null,null,null,null,null,null,{"$f":"IFERROR(BJ6/BJ5,0)","v":0}]
[{"$f":"BSP!B16","v":0},null,null,null,null,null,null,null,null,null,null,null,null,null,null,null,null,null,null,null,null,null,null,null,null,null,null,null,null,null,null,null,null,null,null,null,null,null,null,null,null,null,null,null,null,null,null,null,null,null,null,null,null,null,null,null,null,null,null,null,null,{"$f":"AVERAGE(B8:BA8)","v":{"$error":"#DIV/0!"}}]
[{"$f":"BSP!B17","v":0},null,null,null,null,null,null,null,null,null,null,null,null,null,null,null,null,null,null,null,null,null,null,null,null,null,null,null,null,null,null,null,null,null,null,null,null,null,null,null,null,null,null,null,null,null,null,null,null,null,null,null,null,null,null,null,null,null,null,null,null,{"$f":"AVERAGE(B9:BA9)","v":{"$error":"#DIV/0!"}}]
["Target Behavior Total Duration"]
[{"$f":"BSP!B10","v":0},null,null,null,null,null,null,null,null,null,null,null,null,null,null,null,null,null,null,null,null,null,null,null,null,null,null,null,null,null,null,null,null,null,null,null,null,null,null,null,null,null,null,null,null,null,null,null,null,null,null,null,null,null,null,null,null,null,null,null,null,{"$f":"AVERAGE(B11:BA11)","v":{"$error":"#DIV/0!"}}]
[{"$f":"BSP!B11","v":0},null,null,null,null,null,null,null,null,null,null,null,null,null,null,null,null,null,null,null,null,null,null,null,null,null,null,null,null,null,null,null,null,null,null,null,null,null,null,null,null,null,null,null,null,null,null,null,null,null,null,null,null,null,null,null,null,null,null,null,null,{"$error":"#DIV/0!"}]
[{"$f":"BSP!B12","v":"Replacement Behaviors"},null,null,null,null,null,null,null,null,null,null,null,null,null,null,null,null,null,null,null,null,null,null,null,null,null,null,null,null,null,null,null,null,null,null,null,null,null,null,null,null,null,null,null,null,null,null,null,null,null,null,null,null,null,null,null,null,null,null,null,null,{"$error":"#DIV/0!"}]
[{"$f":"BSP!B13","v":0},null,null,null,null,null,null,null,null,null,null,null,null,null,null,null,null,null,null,null,null,null,null,null,null,null,null,null,null,null,null,null,null,null,null,null,null,null,null,null,null,null,null,null,null,null,null,null,null,null,null,null,null,null,null,null,null,null,null,null,null,{"$error":"#DIV/0!"}]
[{"$f":"BSP!B14","v":0},null,null,null,null,null,null,null,null,null,null,null,null,null,null,null,null,null,null,null,null,null,null,null,null,null,null,null,null,null,null,null,null,null,null,null,null,null,null,null,null,null,null,null,null,null,null,null,null,null,null,null,null,null,null,null,null,null,null,null,null,{"$error":"#DIV/0!"}]
[{"$f":"BSP!B15","v":"Staff Instructions"},null,null,null,null,null,null,null,null,null,null,null,null,null,null,null,null,null,null,null,null,null,null,null,null,null,null,null,null,null,null,null,null,null,null,null,null,null,null,null,null,null,null,null,null,null,null,null,null,null,null,null,null,null,null,null,null,null,null,null,null,{"$error":"#DIV/0!"}]
[{"$f":"BSP!B16","v":0},null,null,null,null,null,null,null,null,null,null,null,null,null,null,null,null,null,null,null,null,null,null,null,null,null,null,null,null,null,null,null,null,null,null,null,null,null,null,null,null,null,null,null,null,null,null,null,null,null,null,null,null,null,null,null,null,null,null,null,null,{"$error":"#DIV/0!"}]
[{"$f":"BSP!B17","v":0},null,null,null,null,null,null,null,null,null,null,null,null,null,null,null,null,null,null,null,null,null,null,null,null,null,null,null,null,null,null,null,null,null,null,null,null,null,null,null,null,null,null,null,null,null,null,null,null,null,null,null,null,null,null,null,null,null,null,null,null,{"$error":"#DIV/0!"}]
["Target Behavior Average Duration"]
[{"$f":"BSP!B10","v":0},{"$f":"IFERROR(B11/B2,0)","v":0},0,0,0,0,0,0,0,0,0,0,0,0,0,0,0,0,0,0,0,0,0,0,0,0,0,0,0,0,0,0,0,{"$f":"IFERROR(AH11/AH2,0)","v":0},0,0,0,0,0,0,0,0,0,0,0,0,0,0,0,0,0,0,0,0,0,0,0,0,0,0,0,{"$f":"AVERAGE(B20:BA20)","v":0}]
[{"$f":"BSP!B11","v":0},{"$f":"IFERROR(B12/B3,0)","v":0},0,0,0,0,0,0,0,0,0,0,0,0,0,0,0,0,0,0,0,0,0,0,0,0,0,0,0,0,0,0,0,{"$f":"IFERROR(AH12/AH3,0)","v":0},0,0,0,0,0,0,0,0,0,0,0,0,0,0,0,0,0,0,0,0,0,0,0,0,0,0,0,0]
[{"$f":"BSP!B12","v":"Replacement Behaviors"},{"$f":"IFERROR(B13/B4,0)","v":0},0,0,0,0,0,0,0,0,0,0,0,0,0,0,0,0,0,0,0,0,0,0,0,0,0,0,0,0,0,0,0,{"$f":"IFERROR(AH13/AH4,0)","v":0},0,0,0,0,0,0,0,0,0,0,0,0,0,0,0,0,0,0,0,0,0,0,0,0,0,0,0,0]
[{"$f":"BSP!B13","v":0},{"$f":"IFERROR(B14/B5,0)","v":0},0,0,0,0,0,0,0,0,0,0,0,0,0,0,0,0,0,0,0,0,0,0,0,0,0,0,0,0,0,0,0,{"$f":"IFERROR(AH14/AH5,0)","v":0},0,0,0,0,0,0,0,0,0,0,0,0,0,0,0,0,0,0,0,0,0,0,0,0,0,0,0,0]
[{"$f":"BSP!B14","v":0},{"$f":"IFERROR(B15/B6,0)","v":0},0,0,0,0,0,0,0,0,0,0,0,0,0,0,0,0,0,0,0,0,0,0,0,0,0,0,0,0,0,0,0,{"$f":"IFERROR(AH15/AH6,0)","v":0},0,0,0,0,0,0,0,0,0,0,0,0,0,0,0,0,0,0,0,0,0,0,0,0,0,0,0,0]
[{"$f":"BSP!B15","v":"Staff Instructions"},{"$f":"IFERROR(B16/B7,0)","v":0},0,0,0,0,0,0,0,0,0,0,0,0,0,0,0,0,0,0,0,0,0,0,0,0,0,0,0,0,0,0,0,{"$f":"IFERROR(AH16/AH7,0)","v":0},0,0,0,0,0,0,0,0,0,0,0,0,0,0,0,0,0,0,0,0,0,0,0,0,0,0,0,0]
[{"$f":"BSP!B16","v":0},{"$f":"IFERROR(B17/B8,0)","v":0},0,0,0,0,0,0,0,0,0,0,0,0,0,0,0,0,0,0,0,0,0,0,0,0,0,0,0,0,0,0,0,{"$f":"IFERROR(AH17/AH8,0)","v":0},0,0,0,0,0,0,0,0,0,0,0,0,0,0,0,0,0,0,0,0,0,0,0,0,0,0,0,0]
[{"$f":"BSP!B17","v":0},{"$f":"IFERROR(B18/B9,0)","v":0},0,0,0,0,0,0,0,0,0,0,0,0,0,0,0,0,0,0,0,0,0,0,0,0,0,0,0,0,0,0,0,{"$f":"IFERROR(AH18/AH9,0)","v":0},0,0,0,0,0,0,0,0,0,0,0,0,0,0,0,0,0,0,0,0,0,0,0,0,0,0,0,0]
["Replacement Behavior"]
[{"$f":"BSP!B13","v":0}]
[{"$f":"BSP!B14","v":0}]
[{"$f":"BSP!B15","v":"Staff Instructions"}]
[{"$f":"BSP!B16","v":0}]

{"sheet":"Safety Interventions Datasheet","index":9,"n_rows":30,"n_cols":14,"rows_kept":30,"cut":false,"hidden":false,"merged":[]}
["Behavioral Safety Interventions - Frequency","January","February","March","April","May","June","July","August","September","October","November","December","Yearly Avg. "]
["Safety Delay",null,null,null,null,null,null,null,null,null,null,null,null,{"$f":"AVERAGE(Table3[[#This Row],[January]:[December]])","v":{"$error":"#DIV/0!"}}]
["Manual Restraint",null,null,null,null,null,null,null,null,null,null,null,null,{"$f":"AVERAGE(Table3[[#This Row],[January]:[December]])","v":{"$error":"#DIV/0!"}}]
["Supported Recovery",null,null,null,null,null,null,null,null,null,null,null,null,{"$f":"AVERAGE(Table3[[#This Row],[January]:[December]])","v":{"$error":"#DIV/0!"}}]
["Supported Recovery - Separation ",null,null,null,null,null,null,null,null,null,null,null,null,{"$f":"AVERAGE(Table3[[#This Row],[January]:[December]])","v":{"$error":"#DIV/0!"}}]
["Mechanical Restraint",null,null,null,null,null,null,null,null,null,null,null,null,{"$f":"AVERAGE(Table3[[#This Row],[January]:[December]])","v":{"$error":"#DIV/0!"}}]
["Protective Equipment",null,null,null,null,null,null,null,null,null,null,null,null,{"$f":"AVERAGE(Table3[[#This Row],[January]:[December]])","v":{"$error":"#DIV/0!"}}]
["PRN Medication",null,null,null,null,null,null,null,null,null,null,null,null,{"$f":"AVERAGE(Table3[[#This Row],[January]:[December]])","v":{"$error":"#DIV/0!"}}]
["Other Restricted Procedure",null,null,null,null,null,null,null,null,null,null,null,null,{"$f":"AVERAGE(Table3[[#This Row],[January]:[December]])","v":{"$error":"#DIV/0!"}}]
["Other Restricted Procedure",null,null,null,null,null,null,null,null,null,null,null,null,{"$f":"AVERAGE(Table3[[#This Row],[January]:[December]])","v":{"$error":"#DIV/0!"}}]
["Behavioral Safety Interventions - Total Duration"]
["Safety Delay",null,null,null,null,null,null,null,null,null,null,null,null,{"$f":"AVERAGE(Table3[[#This Row],[January]:[December]])","v":{"$error":"#DIV/0!"}}]
["Manual Restraint",null,null,null,null,null,null,null,null,null,null,null,null,{"$f":"AVERAGE(Table3[[#This Row],[January]:[December]])","v":{"$error":"#DIV/0!"}}]
["Supported Recovery",null,null,null,null,null,null,null,null,null,null,null,null,{"$f":"AVERAGE(Table3[[#This Row],[January]:[December]])","v":{"$error":"#DIV/0!"}}]
["Supported Recovery - Separation ",null,null,null,null,null,null,null,null,null,null,null,null,{"$f":"AVERAGE(Table3[[#This Row],[January]:[December]])","v":{"$error":"#DIV/0!"}}]
["Mechanical Restraint",null,null,null,null,null,null,null,null,null,null,null,null,{"$f":"AVERAGE(Table3[[#This Row],[January]:[December]])","v":{"$error":"#DIV/0!"}}]
["Protective Equipment",null,null,null,null,null,null,null,null,null,null,null,null,{"$f":"AVERAGE(Table3[[#This Row],[January]:[December]])","v":{"$error":"#DIV/0!"}}]
["PRN Medication",null,null,null,null,null,null,null,null,null,null,null,null,{"$f":"AVERAGE(Table3[[#This Row],[January]:[December]])","v":{"$error":"#DIV/0!"}}]
["Other Restricted Procedure",null,null,null,null,null,null,null,null,null,null,null,null,{"$f":"AVERAGE(Table3[[#This Row],[January]:[December]])","v":{"$error":"#DIV/0!"}}]
["Other Restricted Procedure",null,null,null,null,null,null,null,null,null,null,null,null,{"$f":"AVERAGE(Table3[[#This Row],[January]:[December]])","v":{"$error":"#DIV/0!"}}]
["Behavioral Safety Interventions - Average Duration",null,null,null,null,null,null,null,null,null,null,null,null,{"$f":"AVERAGE(Table3[[#This Row],[January]:[December]])","v":{"$error":"#DIV/0!"}}]
["Safety Delay",{"$f":"IFERROR(B11/B1,0)","v":0},0,0,0,0,0,0,0,0,0,0,0,{"$f":"AVERAGE(Table3[[#This Row],[January]:[December]])","v":0}]
["Manual Restraint",{"$f":"IFERROR(B12/B2,0)","v":0},0,0,0,0,0,0,0,0,0,0,0,{"$f":"AVERAGE(B23:M23)","v":0}]
["Supported Recovery",{"$f":"IFERROR(B13/B3,0)","v":0},0,0,0,0,0,0,0,0,0,0,0,{"$f":"AVERAGE(B24:M24)","v":0}]
["Supported Recovery - Separation ",{"$f":"IFERROR(B14/B4,0)","v":0},0,0,0,0,0,0,0,0,0,0,0,0]
["Mechanical Restraint",{"$f":"IFERROR(B15/B5,0)","v":0},0,0,0,0,0,0,0,0,0,0,0,0]
["Protective Equipment",{"$f":"IFERROR(B16/B6,0)","v":0},0,0,0,0,0,0,0,0,0,0,0,0]
["PRN Medication",{"$f":"IFERROR(#REF!/#REF!,0)","v":0},{"$f":"IFERROR(#REF!/#REF!,0)","v":0},{"$f":"IFERROR(#REF!/#REF!,0)","v":0},{"$f":"IFERROR(#REF!/#REF!,0)","v":0},{"$f":"IFERROR(#REF!/#REF!,0)","v":0},{"$f":"IFERROR(#REF!/#REF!,0)","v":0},{"$f":"IFERROR(#REF!/#REF!,0)","v":0},{"$f":"IFERROR(#REF!/#REF!,0)","v":0},{"$f":"IFERROR(#REF!/#REF!,0)","v":0},{"$f":"IFERROR(#REF!/#REF!,0)","v":0},{"$f":"IFERROR(#REF!/#REF!,0)","v":0},{"$f":"IFERROR(#REF!/#REF!,0)","v":0},0]
["Other Restricted Procedure",{"$f":"IFERROR(B18/B8,0)","v":0},0,0,0,0,0,0,0,0,0,0,0,0]
["Other Restricted Procedure",{"$f":"IFERROR(B19/B9,0)","v":0},0,0,0,0,0,0,0,0,0,0,0,0]

{"sheet":"FA Worksheet","index":10,"n_rows":69,"n_cols":10,"rows_kept":69,"cut":false,"hidden":false,"merged":[[37,1,37,4],[37,5,37,6],[37,7,37,8],[37,9,37,10],[39,1,39,4],[39,5,39,6],[39,7,39,8],[39,9,39,10],[41,1,41,4],[41,5,41,6],[41,7,41,8],[41,9,41,10],[43,1,43,4],[43,5,43,10],[68,2,68,3],[68,4,68,5],[68,6,68,7],[68,8,68,10],[45,1,45,4],[49,1,50,2],[49,3,49,10],[50,7,50,10],[51,1,51,2],[51,7,51,10],[55,1,62,10],[67,2,67,3],[67,4,67,5],[67,6,67,7],[67,8,67,10],[5,1,5,2],[5,3,5,4],[5,5,5,6],[5,7,5,10],[0,0,3,11],[4,1,4,2],[4,3,4,4],[4,5,4,6],[4,7,4,10]]}
["Functional Assessment Worksheet"]
[]
[]
[]
[null,"Person Supported",null,{"$f":"BSAR!D4","v":0},null,"Behavior Analyst",null,{"$f":"BSAR!D5","v":0}]
[null,"Date Completed",null,null,null,"Reason Completed"]
[]
["2.1.4","Analysis of antecedents and consequences using direct and objective measures.  "]
[]
[]
[null,"Behavior","Attention Antecedent","Attention Consequent","Escape Antecedent","Escape Consequent","Tangible Antecedent","Tangible Consequent","Automatic Antecedent","Automatic Consequent"]
[null,{"$f":"BSAR!B41","v":0}]
[]
["2.1.4","Graphic display of function data.   "]
[]
[]
[]
[]
[]
[]
[]
[]
[]
[]
[]
[]
[]
[]
[]
[]
[]
[]
[]
[]
[]
["2.1.5","Potential Motivating Operations"]
[]
[null,"Mental Health/ID Diagnoses"]
[]
[null,"Psychotropic Medications "]
[]
[null,"Medical Diagnoses "]
[]
[null,"Social History"]
[]
[null,"Average hours of sleep per 24 hour period.  "]
[]
["2.1.5","Hypothesized Motivating Operations"]
[]
[null,"Cotributing Factor (Motivating Operation)",null,"Specific hypothesized impact on present behavior.  "]
[null,null,null,"Effect on Reinforcer","Reinforcer Affected","Effect on Behavior","Behaviors Affected","Specific Hypothesis"]
[]
[]
["2.1.4","Analysis of Function Data"]
["2.1.5"]
[]
[]
[]
[]
[]
[]
[]
[]
[]
["2.1.6","Functional hypotheses. "]
[]
[]
[null,"Target Behavior","Motivating Operation",null,"Antecedents",null,"Consequences",null,"Behavioral Function"]
[null,{"$f":"BSAR!B41","v":0}]

{"sheet":"Risk Issues Identification Tool","index":11,"n_rows":55,"n_cols":8,"rows_kept":55,"cut":false,"hidden":false,"merged":[[12,2,12,6],[12,7,12,11],[0,0,1,12],[2,1,2,2],[2,3,2,6],[2,7,2,8],[2,9,2,11],[3,1,3,6],[3,7,3,11],[4,7,4,11],[6,1,8,11],[10,1,10,11],[11,2,11,6],[11,7,11,11],[13,2,13,6],[13,7,13,11],[14,2,14,6],[14,7,14,11],[15,2,15,6],[15,7,15,11],[16,2,16,6],[16,7,16,11],[17,2,17,6],[17,7,17,11],[18,2,18,6],[18,7,18,11],[19,2,19,6],[19,7,19,11],[20,2,20,6],[20,7,20,11],[21,2,21,6],[21,7,21,11],[29,2,29,6],[29,7,29,11],[22,2,22,6],[22,7,22,11],[23,2,23,6],[23,7,23,11],[24,2,24,6],[24,7,24,11],[26,1,26,11],[27,2,27,6],[27,7,27,11],[28,2,28,6],[28,7,28,11],[30,2,30,6],[30,7,30,11],[31,2,31,6],[31,7,31,11],[32,2,32,6],[32,7,32,11],[41,1,41,11],[33,2,33,6],[33,7,33,11],[34,2,34,6],[34,7,34,11],[35,2,35,6],[35,7,35,11],[37,1,37,11],[38,2,38,6],[38,7,38,11],[39,2,39,6],[39,7,39,11],[51,2,51,6],[51,7,51,11],[42,2,42,6],[42,7,42,11],[43,2,43,6],[43,7,43,11],[45,1,45,11],[46,2,46,6],[46,7,46,11],[47,2,47,6],[47,7,47,11],[48,2,48,6],[48,7,48,11],[50,1,50,11],[52,2,52,6],[52,7,52,11],[53,2,53,6],[53,7,53,11],[54,2,54,6],[54,7,54,11]]}
["Risk Issues Identification Tool"]
[]
[null,"Person Supported:",null,{"$f":"[1]BSP!E3","v":0},null,null,null,"Date Completed"]
[null,"Person's Support Coordination Agency:"]
[null,"Name of Person Completing this Form and Your Affiliation:  "]
[]
[null,"Directions:  This tool is to be completed by all providers supporting the person noted above prior to the planning meeting.  It is to be given to the Support Coordinator or Case Manager no less than 90 days prior to the annual ISP effective date.  \n\n• Identify individual risks that are specific to the person. \n• Include factual and detailed information as to why the noted area currently presents a particular risk to this person, or how the issue has presented significant risk in the past and might impact the person currently.\n• You may include a recommended strategy for managing or eliminating the risk, if desired.  \n• During the ISP planning meeting, decisions and plans, if needed, will be made around each risk identified.\n"]
[]
[]
[]
[null,"I. Individual Risks:  Relevant to Day and Residential Living"]
[null,"X","Identified Risk Issue",null,null,null,null,"Describe the incident(s) or issue(s) that indicates this as a current Risk?"]
[null,null,"Loss of home: \n• Someone is about to lose income which would cause them to have difficulty paying a mortgage or rent;\n• Living in someone else’s home and needs to move; loss of eligibility of funds that assist with rent or mortgage etc\n• Excessive housing costs: Housing costs, to include rent/mortgage, household expenses are so excessive that they are not being paid or all their income is being absorbed by the housing costs leaving no room for other expenditures\n• Eviction: Being evicted due to property destruction, not paying rent, too loud or breaking the rental agreement in any way, etc\n• May not have a good relationship with landlord; the person has not lived up to her/his responsibilities as a tenant\n• Dangerous or threatening neighbors i.e. verbal and/or physical threats from neighbors\n"]
[null,null,"Loss of caregiver or caregiver is incapacitated: \n• Family or caregiver is ill and cannot care for the person safely or effectively, living in a home where the caregiver has indicated they can no longer support the person for various reasons, someone close has passed away or moved\n"]
[null,null,"Social isolation: \n• Caregiver is unable or unwilling to support the person in the community due to various reasons, i.e. caregiver/person’s medical circumstances, protectiveness, elderly, financial inability, lack of transportation, etc.\n• The person separates themselves from others, or situations, that are typically routine or encouraged, i.e. social gatherings, recreational activities, general socializing, interacting, communicating.  This does not include someone who is shy or just likes to be by themselves periodically due to their personality\n"]
[null,null,"Significantly compromised hygiene:  \n• Hygiene that could expose the person to dangerous health issues \n• Hygiene that could prevent the person from being a valued community member\n"]
[null,null,"Compromised communication skills:\n• Limited communication ability which would expose or create a danger to the person\n• Inability to communicate, either with words, actions or use of a communication device, their basic needs such as hunger, thirst, unhappiness, etc. which can lead to distress and the risk of compromised support and care.\n"]
[null,null,"Unsanitary living conditions: \n• Living conditions that could jeopardize the person’s health and/or safety, such as the presence of rats, roaches, mice etc\n"]
[null,null,"Home is in significant disrepair: \n• Needed home repairs that significantly affect the person’s safety, health, or well being\n"]
[null,null,"Significant changes in sleeping: \n• Person is either not sleeping as much or sleeping more\n• Falling asleep during unusual hours\n• Difficult to awaken from sleep\n"]
[null,null,"Environmental modifications and/or equipment not completed or available: \n• Equipment not being available for use\n• Can not obtain needed modifications for accessibility that have been identified through an assessment (i.e. due to lack of a provider or funding)\n• Equipment that the person needs to move about safely, communicate, complete activities of daily living, etc. that is broken or in disrepair \n• Equipment has been identified as necessary but not addressed or it has been addressed but still not available\n"]
[null,null,"Lack of Mobility: \n• Lack of mobility that could result in skin breakdown/pressure sores\n• Substantially limits access to home or community\n"]
[null,null,"Elopement: \n• To leave an area, “run away” without staff or caregiver knowledge, which could lead to injury, death, exploitation, etc.\n"]
[null,null,"Contact with Emergency Medical Services, law enforcement, or mobile crisis:\n• A person repeatedly calls 911 or other emergency system for no justifiable reason\n• Engages in dangerous behavior that can only be managed by calling an emergency entity\n• Recent suicidal ideation or attempts to commit suicide\n• Destruction of property so serious that it could lead to criminal charges\n"]
[null,null,"Excessive self-stimulatory behaviors/Self injury:  \n• Injures self to the degree that requires medical attention/first aid or if continued would need medical attention/first aid\n• Self –stimulatory behavior that could cause acute, chronic or permanent injury, unwanted attention from others, or distracts the person to the degree they cannot participate in activities\n"]
[]
[null,"II. Individual Risks:  Relevant to Medical"]
[null,"X","Identified Risk Issue",null,null,null,null,"Describe the incident(s) or issue(s) that indicates this as a current Risk?"]
[null,null,"Unmet medical needs:  \n• Identified medical needs that are not being met due to poor compliance from person, or caregiver\n• Medical appointments or follow up appointments not scheduled or missed \n• Refuses services that are imperative to the person\n• Physician orders not being followed that could significantly jeopardize the person’s health and safety\n• Poor follow through on post hospitalization discharge orders\n"]
[null,null,"Substance abuse:  \n• This could include alcohol, legal, illegal drugs or any other addictive product that is abused and currently creates an unsafe or unhealthy situation\n"]
[null,null,"Inability to tolerate a medical examination/procedure: \n• Due to apprehension, fear, medical condition, previous unpleasant experiences etc. the person is unable to tolerate a medical examination or procedure.  This might include dental visits, intrusive procedures, or responds negatively to any type of medical intervention for reasons unknown  \n"]
[null,null,"Increased or unusual falls:  \n• Increased or unusual falling that results in injury such as fractures or severe injury  \n\n"]
[null,null,"Inability to communicate basic needs such as pain, illness, hunger or thirst, etc. \n• The person, cannot, either by facial expressions, words, gestures, use of his/her communication device, sign language, etc. let others know when they are experiencing pain or illness which can create or expose them to health and safety risks (does not express pain or discomfort that may indicate the need for medical treatment) \n\n"]
[null,null,"Pica:  \n• Demonstrates an abnormal desire or appetite for non-food substances such as dirt, paint, clay, cigarettes, etc that could result in obstructed airway, illness, bowel obstruction, etc \n\n"]
[null,null,"Lifestyle choices that significantly affect health:  \n• These “choices” are things such as excessive eating, drinking or smoking, etc. when there is medical diagnosis for which continued habits could worsen the condition and significantly impact the person’s health or safety \n"]
[null,null,"Significant changes in sleeping: \n• Person is either not sleeping as much or sleeping more\n• Falling asleep during unusual hours\n• Difficult to awaken from sleep\n"]
[]
[null,"III. Individual Financial Risks"]
[null,"X","Identified Risk Issue",null,null,null,null,"Describe the incident(s) or issue(s) that indicates this as a current Risk?"]
[null,null,"Inadequate financial resources: \n• Loss of job that would financially jeopardize their home, benefits, or preferred lifestyle\n• Owes money to others for which the person has difficulty paying due to poor financial decisions\n• Loss of government benefits or significant reduction in benefits\n• Loaning money or routinely giving money away to others which could lead to exploitation and loss of goods, home, lifestyle or services \n• Excessive gambling which jeopardizes the person’s financial well-being\n\n"]
[]
[null,"IV. Relationship Risks"]
[null,"X","Identified Risk Issue",null,null,null,null,"Describe the incident(s) or issue(s) that indicates this as a current Risk?"]
[null,null,"Unsafe sexually activity: \n• Sexual activity that may lead to pregnancy or exposure to HIV, STDs\n• Sexual activity such as masturbating in public or solicitation of sex that could lead to arrest and/or incarceration\n\n\n"]
[]
[null,"V. Individual Mealtime Risks"]
[null,"X","Identified Risk Issue",null,null,null,null,"Describe the incident(s) or issue(s) that indicates this as a current Risk?"]
[null,null,"Significant weight gain/loss or change in eating patterns:  \n• Excessive weight loss or gain within the reporting year that is not intentional.  \n• Weight loss so excessive that could be related to additional concerns\nEating habits or patterns have changed to include loss or increase in appetite, not eating the foods that they had previously liked, coughing while eating, experiencing difficulty chewing or swallowing etc\n\n\n\n"]
[null,null,"Choking and/or aspiration or swallowing disorders:  \n• Has a diagnosis of dysphagia (difficulty swallowing) or demonstrates problems with swallowing, choking, refuses to eat or coughs while eating etc \n• Has been treated for aspiration pneumonia  \n"]
[]
[null,"VI. Other Risks People Need to Know"]
[null,"X","Identified Risk Issue",null,null,null,null,"Describe the incident(s) or issue(s) that indicates this as a current Risk?"]
[null,null,"History of or presently engages in aggressive or dangerous behavior:\n• Engages in aggression or dangerous behavior to others that currently impacts the person or others\n• History of extremely serious criminal acts such as; pedophilia, murder, rape, arson etc. (Note: History of a  less severe act, that is now managed and no longer occurs, should be closely reviewed to determine if it continues to be a risk)\n• Excessive interest in children or sexual ideations involving children  \n• Knowingly takes property of another person without permission\n• Verbal or physical threats that have a major affect on others\n• Takes advantage of vulnerable individuals\n• Predatory behavior-victimizes or preys on another for ones own gain\n\n\n"]
[null,null,"Criminal justice involvement: \n• Criminal justice involvement which can lead to incarceration and/or the risk of being exploited, abused, medically neglected and loss of services\n\n"]
[null,null,"Fascination with fire or of fire setting: \n• Currently demonstrates or expresses an intense interest in fire, matches, setting fires etc. or has any history of arson\n"]

{"sheet":"Benefit-Risk Analysis","index":12,"n_rows":33,"n_cols":12,"rows_kept":33,"cut":false,"hidden":false,"merged":[[6,0,6,3],[6,4,6,11],[0,0,3,11],[4,0,4,3],[4,4,4,11],[5,0,5,3],[5,4,5,11],[7,0,7,3],[7,4,7,11],[9,0,9,2],[9,6,9,8],[10,0,10,2],[10,6,10,8],[11,0,11,2],[11,6,11,8],[12,0,12,2],[12,6,12,8],[13,0,13,2],[13,6,13,8],[21,6,21,8],[14,0,14,2],[14,6,14,8],[15,0,15,4],[15,6,15,10],[16,7,16,9],[16,10,16,11],[19,0,19,2],[19,6,19,8],[20,6,20,8],[20,0,20,2],[18,0,18,3],[18,4,18,11],[32,0,32,11],[21,0,21,2],[23,0,23,2],[23,6,23,8],[26,7,26,9],[26,10,26,11],[28,0,28,11],[29,0,29,11],[30,0,30,11],[31,0,31,11],[22,0,22,2],[22,6,22,8],[24,0,24,2],[24,6,24,8],[25,0,25,4],[25,6,25,10]]}
["Benefit/Risk Analysis for Restrictions and Restricted Procedures"]
[]
[]
[]
["Person's Name:",null,null,null,{"$f":"BSAR!D4","v":0}]
["Person Conducting Analysis:",null,null,null,{"$f":"BSAR!D5","v":0}]
["Date of Analysis:  "]
["Restriction or Restricted Procedure:  "]
[]
["List of Benefits",null,null,"Likelihood","Outcome Strength","Overall Benefit","List of Risks",null,null,"Likelihood","Outcome Strength","Overall Risk"]
[null,null,null,null,null,{"$f":"D11*E11","v":0},null,null,null,null,null,{"$f":"J11*K11","v":0}]
[null,null,null,null,null,{"$f":"D12*E12","v":0},null,null,null,null,null,{"$f":"J12*K12","v":0}]
[null,null,null,null,null,0,null,null,null,null,null,0]
[null,null,null,null,null,0,null,null,null,null,null,0]
[null,null,null,null,null,0,null,null,null,null,null,0]
["Sum of Overall Benefits",null,null,null,null,{"$f":"SUM(F11:F15)","v":0},"Sum of Overall Risks",null,null,null,null,{"$f":"SUM(L11:L15)","v":0}]
[null,null,null,null,null,null,null,"Benefit/Risk Ratio",null,null,{"$f":"F16/L16","v":{"$error":"#DIV/0!"}}]
[]
["Comparison Procedure:"]
["List of Benefits",null,null,"Likelihood","Outcome Strength","Overall Benefit","List of Risks",null,null,"Likelihood","Outcome Strength","Overall Risk"]
[null,null,null,null,null,{"$f":"D21*E21","v":0},null,null,null,null,null,{"$f":"J21*K21","v":0}]
[null,null,null,null,null,{"$f":"D22*E22","v":0},null,null,null,null,null,{"$f":"J22*K22","v":0}]
[null,null,null,null,null,0,null,null,null,null,null,0]
[null,null,null,null,null,0,null,null,null,null,null,0]
[null,null,null,null,null,0,null,null,null,null,null,0]
["Sum of Overall Benefits",null,null,null,null,{"$f":"SUM(F21:F25)","v":0},"Sum of Overall Risks",null,null,null,null,{"$f":"SUM(L21:L25)","v":0}]
[null,null,null,null,null,null,null,"Benefit/Risk Ratio",null,null,{"$f":"F26/L26","v":{"$error":"#DIV/0!"}}]
[]
["Likelihood - The probability that the risk or benefit will occur with the proposed procedure."]
["Strength - The positive value of the benefit or negative value of the risk associated with the proposed procedure.  "]
["Rating Scale (1-3) 1 = Low probability or value  2= Moderate probability or value 3 = High probability or value"]
["Overall scores are derived by multiplying likelihood by strength and result in a score from 1 to 9"]
["Overall scores are totaled and the sum of overall benefits total is divided by the sum of overall risk total and results in the Benefit/Risk Ratio.  "]

{"sheet":"Admin","index":13,"n_rows":165,"n_cols":10,"rows_kept":165,"cut":false,"hidden":true,"merged":[]}
["Physical Aggression",null,"Several  per day",null,"Low"]
["Property Destruction",null,"1 or 2 per day",null,"Moderate"]
["Self-Injury",null,"1 or 2 per week",null,"High"]
["Self-Harm",null,"1 or 2 per month"]
["Self-Mutilation",null,"1 or 2 per year"]
["Inappropriate Sexual Behavior"]
["Sexual Assault"]
["Elopement "]
["Verbal Aggression"]
[null,null,"Effective"]
["Several times per day",null,"Ineffective",null,null,null,"Crying"]
["Once or twice per day",null,"Moderately Effective",null,null,null,"Dropping to Floor"]
["Once or twice per week",null,"Uncertain/Unknown",null,null,null,"Eating Inedibles"]
["Once or twice per month",null,null,null,null,null,"Elopement"]
["Once or twice per year",null,null,null,null,null,"Inapp. Sexual Behavior"]
[null,null,"Criterion Met, Revise",null,null,null,"Incontinence, Feces"]
["Low",null,"Criterion Met, Discontinue",null,null,null,"Incontinence, Urine"]
["Moderate",null,"Progress ",null,null,null,"Physical Aggression"]
["High",null,"No Progress",null,null,null,"Property Destruction"]
["Dysmenorrhea",null,null,null,null,null,"Refusal to Participate"]
["Constipation",null,"Complete",null,null,null,"Self-Harm"]
["Sleep Deprivation",null,"Incomplete/Continue",null,null,null,"Self-Injury"]
["Sleep Excess",null,"Incomplete/Discontinue",null,null,null,"Self-Mutilation"]
["GERD",null,null,null,null,null,"Sexual Assault"]
["Seizure Disorder",null,null,null,null,null,"Stealing"]
["Obesity",null,null,null,null,null,"Threatening"]
["Hypothyroidism",null,null,null,null,null,"Verbal Aggression"]
["Hyperthyroidism",null,null,null,null,null,"Yelling"]
["Establishing (Increasing)",null,null,null,null,null,"None"]
["Abolishing (Decreasing)",null,null,null,null,null,"Angelman Syndrome"]
[null,null,null,null,null,null,"Cardiac Disorder"]
[null,null,"Attention",null,null,null,"Constipation"]
[null,null,"Tangible",null,null,null,"Diabetes"]
[null,null,"Escape ",null,null,null,"Down Syndrome"]
[null,null,"Automatic",null,null,null,"Endocrinological Disorder"]
[null,null,"Attention/Escape",null,null,null,"Fragile X Syndrome"]
["Evocative (Increasing)",null,"Escape/Attention",null,null,null,"Gastrointestinal Disorder"]
["Abative (Decreasing)",null,"Attention/Tangible",null,null,null,"Hypertension"]
[null,null,"Tangible/Attention",null,null,null,"Hyperthyroidism"]
["Antisocial Personality",null,"Attention/Automatic",null,null,null,"Hypothyroidism"]
["Anxiety Disorder",null,"Automatic/Attention",null,null,null,"Lower GI "]
["Attention Deficit",null,"Tangible/Escape",null,null,null,"Mental Health Disorder"]
["Autism Spectrum",null,"Escape/Tangible",null,null,null,"Neurological, Other"]
["Borderline Personality",null,"Tangible/Automatic",null,null,null,"Obesity"]
["Depressive Disorder",null,"Automatic/Tangible",null,null,null,"Oncological Disorder"]
["Intermittent Explosive",null,"Escape/Automatic",null,null,null,"Orthopedic Disorder"]
["Mild ID",null,"Automatic/Escape",null,null,null,"Reproductive System Disorder"]
["Moderate ID",null,"Three or more functions",null,null,null,"Respiratory Disorder"]
["Mood Disorder",null,null,null,null,null,"Seizure Disorder"]
["Profound ID",null,null,null,null,null,"Dysmenorrhea"]
["Psychotic Disorder",null,null,null,null,null,"Skin Disorders"]
["PTSD",null,null,null,null,null,"Sleep Disorder"]
["Severe ID",null,null,null,null,null,"Upper GI"]
["Sexual Disorder",null,null,null,null,null,"Williams Syndrome"]
[null,null,null,null,null,null,"Other"]
["Low "]
["Medium"]
["High"]
[]
["Treatment"]
["Service"]
["ISP",null,null,"Antecedent Modification",null,null,null,null,null,"Antecedent Modification"]
["Crisis",null,null,"Behavioral Contracting ",null,null,null,null,null,"Environmental Enhancement"]
[null,null,null,"Behavioral Momentum",null,null,null,null,null,"Neutralizing Routine"]
[null,null,null,"Blocking",null,null,null,null,null,"Non-contingent Reinforcement"]
[null,null,null,"Chaining",null,null,null,null,null,"Priming "]
[null,null,null,"Contingent Effort",null,null,null,null,null,"Prompting"]
[null,null,null,"DRA",null,null,null,null,null,"None"]
[null,null,null,"DRH",null,null,null,null,null,"Other"]
[null,null,null,"DRI",null,null,null,null,null,"Behavioral Contracting"]
[null,null,null,"DRL",null,null,null,null,null,"Behavioral Momentum"]
[null,null,null,"DRO",null,null,null,null,null,"Chaining"]
[null,null,null,"Environmental enhancement",null,null,null,null,null,"DRA"]
[null,null,null,"Escape Extinction with Physical Prompting",null,null,null,null,null,"DRH"]
[null,null,null,"Escape Extinction without Physical Prompting",null,null,null,null,null,"DRI"]
[null,null,null,"Exclusionary Time-Out",null,null,null,null,null,"DRL"]
[null,null,null,"Fading prompts or cues",null,null,null,null,null,"DRO"]
[null,null,null,"Fading Reinforcement ",null,null,null,null,null,"Functional Communication Training"]
[null,null,null,"Functional Communication Training ",null,null,null,null,null,"Modeling and Imitation"]
[null,null,null,"Manual Restraint",null,null,null,null,null,"Role Playing"]
[null,null,null,"Mechanical Restraint",null,null,null,null,null,"Self-Control/Monitoring/Instruction"]
[null,null,null,"Modeling and imitation",null,null,null,null,null,"Shaping"]
[null,null,null,"Negative Practice ",null,null,null,null,null,"Other"]
[null,null,null,"Neutralizing Routine",null,null,null,null,null,"Contingent Effort"]
[null,null,null,"Noncontingent Reinforcement",null,null,null,null,null,"Escape Extinction with Physical Prompting"]
[null,null,null,"None",null,null,null,null,null,"Escape Extinction without Physical Prompting"]
[null,null,null,"Overcorrection",null,null,null,null,null,"Exclusionary Time-Out"]
[null,null,null,"Priming",null,null,null,null,null,"Negative Practice"]
[null,null,null,"Prompting",null,null,null,null,null,"Overcorrection"]
[null,null,null,"Protective Equipment",null,null,null,null,null,"Required Relaxation"]
[null,null,null,"Redirection",null,null,null,null,null,"Response Cost"]
[null,null,null,"Required relaxation",null,null,null,null,null,"Sensory Extinction"]
[null,null,null,"Response Blocking ",null,null,null,null,null,"Simple Correction"]
[null,null,null,"Response Cost",null,null,null,null,null,"Social Disapproval"]
[null,null,null,"Role Playing",null,null,null,null,null,"Social Extinction"]
[null,null,null,"Safety Delay",null,null,null,null,null,"Time 0ut from Positive Reinforcement"]
[null,null,null,"Self-Control/Monitoring/Instruction",null,null,null,null,null,"None"]
[null,null,null,"Sensory Extinction",null,null,null,null,null,"Other"]
[null,null,null,"Shaping",null,null,null,null,null,"Fading prompts or cues"]
[null,null,null,"Simple Correction",null,null,null,null,null,"Fading reinforcement"]
[null,null,null,"Social Disapproval",null,null,null,null,null,"Fading use of restraint/PE"]
[null,null,null,"Social Extinction",null,null,null,null,null,"Other"]
[null,null,null,"Supported Recovery",null,null,null,null,null,"Blocking"]
[null,null,null,"Supported Recovery - Separation ",null,null,null,null,null,"Manual Restraint"]
["None",null,null,"Time-Out from Positive Reinforcement",null,null,null,null,null,"Mechanical Restraint"]
["Unrestricted",null,null,null,null,null,null,null,null,"Protective Equipment"]
["Restricted ",null,null,null,null,null,null,null,null,"Redirection"]
["Special Individualized",null,null,null,null,null,null,null,null,"Safety Delay"]
["Behavioral Safety",null,null,null,null,null,null,null,null,"Supported Recovery"]
["Specialized Behavioral Safety",null,null,null,null,null,null,null,null,"Supported Recovery - Separation"]
["None"]
["Prevention"]
["Teaching"]
["Intervention"]
["Crisis Response"]
["Generalization"]
[]
["Behavior Services: Assessment"]
["Behavior Services: Planning and Implementation"]
["Behavior Services: Other"]
["Behavior Services: Presentation at Meetings"]
[]
["Activity Level",null,null,null,"Aripiprazole (Abilify)"]
["Caffeine Deprivation",null,null,null,"Benztropine (Cogentin)"]
["Constipation",null,null,null,"Carbamazepine (Tegretol)"]
["Delay/Waiting",null,null,null,"Citalopram (Celexa)"]
["Exposure to Aversive Stimuli",null,null,null,"Clonazepam (Klonopin)"]
["Exposure to Sensory Stimuli",null,null,null,"Fluoxetine (Prozac)"]
["Exposure to Social Stimuli",null,null,null,"Fluoxetine (Serafem)"]
["Food Intake Schedule",null,null,null,"Gabapentin (Neurontin)"]
["Gastric Pain",null,null,null,"Haloperidol (Haldol)"]
["GERD",null,null,null,"Lamotrigine (Lamictal)"]
["Irritable Bowel",null,null,null,"Levetiracetam (Keppra)"]
["Nicotine Deprivation",null,null,null,"Lithium (Eskalith/Lithobid)"]
["None",null,null,null,"Lorazepam (Ativan)"]
["Orthopedic Pain",null,null,null,"Lurasidone HCL (Latuda)"]
["Other",null,null,null,"Olanzapine (Zyprexa)"]
["Other Pain",null,null,null,"Oxcarbazepine (Trileptal)"]
["Other Substance Deprivation",null,null,null,"Paroxetine (Paxil)"]
["Seizure Disorder",null,null,null,"Quetiapine (Seroquel)"]
["Sensory Deprivation",null,null,null,"Risperidone (Risperdal)"]
["Sexual Deprivation",null,null,null,"Sertraline (Zoloft)"]
["Sleep Deprivation",null,null,null,"Topomax (Topirimate)"]
["Sleep Excess",null,null,null,"Valproic Acid (Depakote)"]
["Social Deprivation",null,null,null,"Venlafaxine (Effexor)"]
["Unstructured Schedule",null,null,null,"Ziprasidone (Geodon)"]
["Lower GI "]
["Cardiac Disorder"]
["Constipation"]
["Endocrinological Disorder"]
["Gastrointestinal Disorder"]
["Upper GI"]
["Reproductive System Disorder"]
["Obesity"]
["Oncological Disorder"]
["Orthopedic Disorder"]
["Seizure Disorder"]
["Sleep Disorder"]
["Mental Health Disorder"]
["Respiratory Disorder"]
["Skin Disorders"]
["Down Syndrome"]
["Fragile X Syndrome"]
["Angelman Syndrome"]
["Williams Syndrome"]

{"sheet":"IRR Worksheet","index":14,"n_rows":17,"n_cols":12,"rows_kept":17,"cut":false,"hidden":false,"merged":[[0,0,1,11],[2,3,2,4],[4,5,4,9],[16,6,16,9],[2,5,2,8]]}
["Quarterly Data Reliability Worksheet (Interrater)"]
[]
[null,null,null,"Person Supported",null,{"$f":"BSAR!D4","v":0}]
[]
[null,null,null,null,null,"Observation Intervals                                          (1 = Agreement, 0 = No Agreement)"]
[null,"Date of Observation","Observer 1","Observer2","Interval Duration (Mins)",1,2,3,4,5,"% IRR","Data Recorded (Yes/No)"]
[null,null,null,null,null,null,null,null,null,null,{"$f":"SUM(F7:J7)/5","v":0}]
[null,null,null,null,null,null,null,null,null,null,0]
[null,null,null,null,null,null,null,null,null,null,0]
[null,null,null,null,null,null,null,null,null,null,0]
[null,null,null,null,null,null,null,null,null,null,0]
[null,null,null,null,null,null,null,null,null,null,0]
[null,null,null,null,null,null,null,null,null,null,0]
[null,null,null,null,null,null,null,null,null,null,0]
[null,null,null,null,null,null,null,null,null,null,0]
[null,null,null,null,null,null,null,null,null,null,0]
[null,null,null,null,null,null,"Average Reliability",null,null,null,{"$f":"AVERAGE(K7:K16)","v":0}]

{"sheet":"PP Reliability Worksheet","index":15,"n_rows":19,"n_cols":10,"rows_kept":19,"cut":false,"hidden":false,"merged":[[0,6,0,9],[1,0,2,11],[4,3,4,4],[4,5,4,8],[19,6,19,9],[18,5,18,8],[6,4,6,9]]}
[]
["Quarterly Data Reliability Worksheet (Other Products)"]
[]
[]
[null,null,null,"Person Supported",null,{"$f":"BSAR!D4","v":0}]
[]
[null,null,null,null,"Comparisons"]
[null,"Date of Data Review","Primary Product","Secondary Product",1,2,3,4,5,"% Agreement"]
[null,null,null,null,null,null,null,null,null,{"$f":"SUM(E9:I9)/5","v":0}]
[null,null,null,null,null,null,null,null,null,0]
[null,null,null,null,null,null,null,null,null,0]
[null,null,null,null,null,null,null,null,null,0]
[null,null,null,null,null,null,null,null,null,0]
[null,null,null,null,null,null,null,null,null,0]
[null,null,null,null,null,null,null,null,null,0]
[null,null,null,null,null,null,null,null,null,0]
[null,null,null,null,null,null,null,null,null,0]
[null,null,null,null,null,null,null,null,null,0]
[null,null,null,null,null,"Average Reliability",null,null,null,{"$f":"AVERAGE(J9:J18)","v":0}]

{"sheet":"Implementation Reli Worksheet","index":16,"n_rows":12,"n_cols":11,"rows_kept":12,"cut":false,"hidden":false,"merged":[[0,0,1,11],[3,3,3,4],[3,5,3,8],[7,2,7,4],[6,2,6,4],[8,2,8,4],[5,5,5,9],[10,2,10,4],[11,2,11,4],[9,2,9,4]]}
["Quarterly Implementation Reliability Worksheet "]
[]
[]
[null,null,null,"Person Supported",null,{"$f":"BSAR!D4","v":0}]
[]
[null,null,null,null,null,"Dates of Observation (Correct Implementation = 1, Incorrect Implementation = 0)"]
[null,null,"Procedures",null,null,"Enter Date Here","Enter Date Here","Enter Date Here","Enter Date Here","Enter Date Here","% Rel."]
[null,"Prevention",{"$f":"BSP!B19","v":0},null,null,null,null,null,null,null,{"$f":"AVERAGE(F8:J8)","v":{"$error":"#DIV/0!"}}]
[null,"Reinforcement/ Teaching",{"$f":"BSP!#REF!","v":{"$error":"#REF!"}},null,null,null,null,null,null,null,{"$f":"AVERAGE(F9:J9)","v":{"$error":"#DIV/0!"}}]
[null,"Intervention",{"$f":"BSP!#REF!","v":{"$error":"#REF!"}},null,null,null,null,null,null,null,{"$f":"AVERAGE(F10:J10)","v":{"$error":"#DIV/0!"}}]
[null,"Generalization",{"$f":"BSP!#REF!","v":{"$error":"#REF!"}},null,null,null,null,null,null,null,{"$f":"AVERAGE(F11:J11)","v":{"$error":"#DIV/0!"}}]
[null,"Crisis Responding",{"$f":"BSP!#REF!","v":{"$error":"#REF!"}},null,null,null,null,null,null,null,{"$f":"AVERAGE(F12:J12)","v":{"$error":"#DIV/0!"}}]